Cogmind - Beta 14 @@@ ROGUE MODE // 2024.10.07 @ 12:44:15 Player: bluemonk Result: Destroyed by G-47 Trooper with Particle Gun Performance ------------- Evolutions (2) 1000 Regions Visited (4) 800 Robots Destroyed (39) 195 Value Destroyed (1204) 1204 Prototype IDs (8) 160 Alien Tech Used (0) 0 Bonus (114) 114 TOTAL SCORE: 3473 Bonus ------- High Alert Combat Kills 68 Follower Combat Kills 180 Friendly Fire -134 Cogmind --------- Core Integrity 0/550 Matter 243/300 Energy 98/100 System Corruption 3% Temperature Cool (10) Movement Walking (120) Location -8/Materials Parts ------- > --- POWER (1) -------- (None) > --- PROPULSION (4) --- Aluminum Leg > --- UTILITY (4) ------ Improved Heat Sink > --- WEAPON (2) ------- (None) > --- INVENTORY (5) ---- (None) Peak State ------------ > --- POWER ------------ Makeshift Power Source > --- PROPULSION ------- Aluminum Leg Aluminum Leg Carbon-fiber Leg Carbon-fiber Leg > --- UTILITY ---------- Improved Heat Sink Large Storage Unit Experimental Sensor Array Hardened Medium Armor Plating > --- WEAPON ----------- Improved EM Shotgun Advanced Beam Rifle > --- INVENTORY -------- Deuterium Engine Light Deuterium Engine Light Treads Small Storage Unit Trap Scanner Visual Processing Unit Improved EM Shotgun Improved EM Shotgun Beam Rifle Beam Rifle Beam Rifle Advanced Beam Cannon Shotgun Rocket Launcher [Rating: 38] Favorites ----------- Power Makeshift Power Source Engine Makeshift Power Source Propulsion Aluminum Leg Treads Light Treads Leg Aluminum Leg Flight Unit Flight Unit Utility Large Storage Unit Device Improved Heat Sink Storage Large Storage Unit Processor Targeting Computer Protection Hardened Medium Armor Plating Weapon Particle Gun Energy Gun Particle Gun Energy Cannon Advanced Beam Cannon Ballistic Gun Shotgun Launcher Rocket Launcher Build | -11 -10 -10 -9 -8 ------- Run | Yrd Mat Min Mat Mat Slots Evolved 4 | . . . 2 2 Power . | . . . . . Propulsion 2 | . . . 2 . Utility 2 | . . . . 2 Weapon . | . . . . . Parts Attached 69 | 6 4 4 34 21 Power 9 | 1 . 2 3 3 Engine 9 | 1 . 2 3 3 Core . | . . . . . Reactor . | . . . . . Propulsion 24 | 2 . . 17 5 Treads 4 | . . . 3 1 Leg 18 | 2 . . 12 4 Wheel . | . . . . . Hover . | . . . . . Flight 2 | . . . 2 . Utility 11 | 1 1 1 5 3 Device 6 | . . 1 3 2 Storage 2 | 1 . . 1 . Processor 1 | . 1 . . . Hackware . | . . . . . Protection 2 | . . . 1 1 Artifact . | . . . . . Weapon 25 | 2 3 1 9 10 Energy Gun 13 | 2 1 1 4 5 Energy Cannon 6 | . . . 3 3 Ballistic Gun 2 | . . . 1 1 Ballistic Cannon . | . . . . . Launcher 4 | . 2 . 1 1 Special Weapon . | . . . . . Impact Weapon . | . . . . . Slashing Weapon . | . . . . . Piercing Weapon . | . . . . . Special Melee Weapon . | . . . . . Unidentified Prototypes 4 | . . . 2 2 Parts Lost 30 | . . . 6 24 Power 5 | . . . 1 4 Propulsion 10 | . . . 3 7 Utility 5 | . . . 1 4 Weapon 10 | . . . 1 9 Highest Loss Streak 19 | . . . 2 19 To Critical Strikes . | . . . . . Average Slot Usage (%) 93 | . 93 100 98 81 Engine 11 | . 14 14 10 8 Treads 2 | . . . 6 . Leg 30 | . 28 28 34 27 Device 9 | . . 5 9 15 Storage 10 | . 14 14 11 7 Processor 2 | . 8 8 . . Protection 2 | . . . 1 6 Energy Gun 16 | . 19 19 16 13 Launcher 3 | . 8 8 2 . Peak Build Rating 38 | 6 9 15 27 38 Average Rating 19 | 4 7 10 20 29 On Entrance 11 | . 6 9 15 25 Naked Turns 33 | . . . . 33 Heaviest Build 44 | 14 17 24 44 41 Greatest Support 50 | 20 20 20 50 50 Greatest Overweight (x) 10 | . . 1 2 10 Average Overweight (x) . | . . . . . Largest Inventory Capacity 15 | 8 8 8 15 15 Average Capacity 11 | 6 8 8 13 13 Most Carried 15 | 6 8 8 15 15 Average Carried 9 | 2 7 7 10 11 Final Capacity 15 | 8 8 8 15 5 Final Carried 14 | 6 8 8 14 . Class Distribution -------------------- 100% | Mutant Dominant Class ---------------- Mutant | -10/Materials Mutant | -10/Mines Mutant | -9/Materials Mutant | -8/Materials Resources | -11 -10 -10 -9 -8 ----------- Run | Yrd Mat Min Mat Mat Matter Collected 868 | 189 111 62 333 173 Remotely . | . . . . . Salvage Created 1277 | . 112 35 716 414 Parts 76 | . 5 10 42 19 Haulers Intercepted 1 | . . . 1 . Recyclers Shooed . | . . . . . Parts Field Recycled . | . . . . . Retrieved Matter . | . . . . . Parts Self-Destructed . | . . . . . Prevented . | . . . . . Kills | -11 -10 -10 -9 -8 ------- Run | Yrd Mat Min Mat Mat Combat Hostiles Destroyed 32 | . 3 5 17 7 Guns 23 | . 3 3 11 6 AOE 8 | . . 2 5 1 Classes Destroyed 7 | . 1 1 3 2 Worker 1 | . . . . 1 Hauler 1 | . . . 1 . Watcher 4 | . . . 3 1 Swarmer 10 | . . 5 5 . Grunt 14 | . 3 . 8 3 Sentry 6 | . . . 4 2 Specialist 2 | . . . . 2 Thug 1 | . . . 1 . Best Kill Streak 4 | . 3 3 4 4 Combat Bots Only 3 | . 3 3 3 2 Max Kills in Single Turn 2 | . 1 2 2 1 Gunslinging . | . . . . . Exploded 2 | . . 1 2 1 Melee . | . . . . . Uniques/NPCs Destroyed . | . . . . . Combat | -11 -10 -10 -9 -8 -------- Run | Yrd Mat Min Mat Mat Hostile Shots Fired 274 | . 14 31 91 138 Missed 83 | . 3 12 37 31 Damage Taken 3513 | . 135 156 767 2455 Core 778 | . 52 15 146 565 Absorbed by Shields . | . . . . . Core Remaining (%) 78 | 100 . 73 63 . Volleys Fired 122 | . 13 10 65 34 Largest 2 | . 2 2 2 2 Hottest 121 | . 100 115 115 121 Shots Fired 206 | . 23 14 111 58 Gun 181 | . 23 12 99 47 Cannon 11 | . . . 2 9 Launcher 14 | . . 2 10 2 Special . | . . . . . Kinetic 11 | . . . 5 6 Thermal 156 | . 23 12 90 31 Explosive 14 | . . 2 10 2 Electromagnetic 25 | . . . 6 19 Robot Hit Streak 10 | . 8 1 5 10 Robot Miss Streak 4 | . 2 3 3 4 Penetration Max . | . . . . . Secondary Targets 3 | . . . 2 1 Max Gunslinging Chain 1 | . . . 1 1 Shots Hit Robots 129 | . 16 4 64 45 Core Hits 70 | . 7 5 38 20 Critical Kills . | . . . . . Critical Parts Destroyed . | . . . . . Critical Strikes 15 | . 2 . 10 3 Burn 15 | . 2 . 10 3 Melee Attacks . | . . . . . Impact . | . . . . . Slashing . | . . . . . Piercing . | . . . . . Sneak Attacks . | . . . . . Combat Hostiles . | . . . . . Follow-up Attacks . | . . . . . Damage Inflicted 2881 | . 201 297 1334 1049 Guns 1857 | . 201 60 938 658 Cannons 156 | . . . 21 135 Explosions 847 | . . 237 375 235 Melee . | . . . . . Ramming 21 | . . . . 21 Kinetic 141 | . . . 65 76 Thermal 1674 | . 201 60 876 537 Explosive 720 | . . 237 310 173 Electromagnetic 325 | . . . 83 242 Impact . | . . . . . Slashing . | . . . . . Piercing . | . . . . . Highest Corruption 3 | . . . . 3 Average Corruption 3 | . . . . 3 Corruption Purged . | . . . . . Corruption Blocked . | . . . . . Effects 1 | . . . . 1 Energy Discharges 1 | . . . . 1 Overload Shots . | . . . . . Overflow Damage 5 | . . . . 5 Projectiles 5 | . . . . 5 Explosions . | . . . . . Melee . | . . . . . Knockbacks . | . . . . . Impact . | . . . . . Kinetic . | . . . . . Secondary . | . . . . . Self-Inflicted Damage 9 | . . . . 9 Shots . | . . . . . Rammed 4 | . . . . 4 Targets Rammed 4 | . . . . 4 Kicked . | . . . . . Crushed . | . . . . . Highest Temperature 548 | . 390 142 548 156 Average Temperature 120 | . 204 50 131 68 Received Heat Transfer 1026 | . 75 . 348 603 Effects 15 | . 5 . 10 . Shutdowns 3 | . 2 . 1 . Energy Bleed 4 | . 1 . 3 . Interference 5 | . 2 . 3 . Matter Decay 1 | . . . 1 . Short Circuit 1 | . . . 1 . Damage (minor) 1 | . . . 1 . Siege Activations . | . . . . . Robots Corrupted . | . . . . . Combat Hostiles . | . . . . . Parts Fried 1 | . . . . 1 Impact Corruptions . | . . . . . Robots Melted 1 | . . . 1 . Combat Hostiles 1 | . . . 1 . Parts Melted 10 | . . . 8 2 Heat Transferred 4799 | . 740 148 2788 1123 Parts Sabotaged . | . . . . . Parts Stolen . | . . . . . Parts Stripped . | . . . . . Power Chain Reactions 2 | . . . 1 1 Alert | -11 -10 -10 -9 -8 ------- Run | Yrd Mat Min Mat Mat Peak Influence 563 | . 119 144 563 313 Initial 233 | . . 46 21 233 Average 225 | . 87 95 351 218 Maximum Alert Level 2 | . . . 2 1 Low Security (%) 51 | 100 100 100 20 38 Level 1 29 | . . . 31 61 Level 2 18 | . . . 48 . Level 3 . | . . . . . Level 4 . | . . . . . Level 5 . | . . . . . High Security . | . . . . . Max Security . | . . . . . Squads Dispatched 9 | . 1 1 3 4 Investigation 2 | . . 1 . 1 Extermination . | . . . . . Reinforcement 7 | . 1 . 3 3 Assault . | . . . . . Garrison . | . . . . . Intercept . | . . . . . Searches Triggered . | . . . . . Construction Impeded . | . . . . . Haulers Reinforced . | . . . . . Active Scanning Responses . | . . . . . Cargo Convoy Interrupts . | . . . . . Stealth | -11 -10 -10 -9 -8 --------- Run | Yrd Mat Min Mat Mat Distress Signals 6 | . . . 5 1 Communications Jammed . | . . . . . Distress Signals . | . . . . . Times Spotted 63 | . 5 6 29 23 Peak Tracking Total 7 | . 2 3 3 7 Tactical Retreats 7 | . . . . 7 Traps | -11 -10 -10 -9 -8 ------- Run | Yrd Mat Min Mat Mat Traps Triggered 7 | . . . 5 2 Indirectly . | . . . . . Trap Hack Attempts . | . . . . . Triggered . | . . . . . Disarmed . | . . . . . Reprogrammed . | . . . . . Reused . | . . . . . Traps Extracted . | . . . . . Installed . | . . . . . Triggered . | . . . . . Machines | -11 -10 -10 -9 -8 ---------- Run | Yrd Mat Min Mat Mat Machines Disabled 8 | . . 1 5 2 Max in Single Turn 2 | . . 1 2 1 Machines Repaired . | . . . . . Machines Dismantled . | . . . . . Machines Sabotaged . | . . . . . Overloaded Fab Kills . | . . . . . Hacking | -11 -10 -10 -9 -8 --------- Run | Yrd Mat Min Mat Mat Machines Accessed 16 | . 3 1 9 3 Terminals 11 | . 2 . 7 2 Fabricators . | . . . . . Repair Stations 1 | . . . . 1 Recycling Units 3 | . 1 . 2 . Scanalyzers . | . . . . . Garrison Access . | . . . . . Total Hacks 36 | . 8 1 21 6 Successful 24 | . 5 1 14 4 Failed 12 | . 3 . 7 2 Catastrophic 2 | . 1 . 1 . Database Lockouts . | . . . . . Manual . | . . . . . Terminals 29 | . 7 . 18 4 Fabricators . | . . . . . Repair Stations 2 | . . . . 2 Recycling Units 4 | . 1 . 3 . Scanalyzers . | . . . . . Garrison Access . | . . . . . Terminal Hacks 19 | . 4 1 11 3 Prototype ID Bank 2 | . . . 2 . Open Door 1 | . . 1 . . Emergency Access Points 3 | . . . 3 . Alert Level 4 | . 2 . 2 . Locate Traps 1 | . 1 . . . Dispatch Records 2 | . . . 2 . Hauler Manifests 3 | . 1 . 1 1 Registered Components 2 | . . . 1 1 Zone Layout 1 | . . . . 1 Fabricator Hacks . | . . . . . Repair Station Hacks 1 | . . . . 1 Scan Component 1 | . . . . 1 Recycling Unit Hacks 4 | . 1 . 3 . Report Inventory 3 | . 1 . 2 . Retrieve Matter 1 | . . . 1 . Scanalyzer . | . . . . . Garrison Access Hacks . | . . . . . Unauthorized Hacks . | . . . . . Terminals . | . . . . . Fabricators . | . . . . . Repair Stations . | . . . . . Recycling Units . | . . . . . Scanalyzers . | . . . . . Garrison Access . | . . . . . Data Cores Recovered . | . . . . . Used . | . . . . . Hacking Detections 12 | . 3 . 6 3 Full Trace Events . | . . . . . Feedback Events . | . . . . . Feedback Blocked . | . . . . . Robot Schematics Acquired . | . . . . . Robots Built . | . . . . . Authchips . | . . . . . Time . | . . . . . Total Robot Build Rating . | . . . . . Part Schematics Acquired . | . . . . . Parts Built . | . . . . . Authchips . | . . . . . Time . | . . . . . Total Part Build Rating . | . . . . . Parts Repaired . | . . . . . Time . | . . . . . Parts Recycled . | . . . . . Recycled Matter . | . . . . . Retrieved Matter 93 | . . . 93 . Retrieved Components . | . . . . . Parts Scanalyzed . | . . . . . Part Schematics Acquired . | . . . . . Parts Damaged . | . . . . . Bothacking | -11 -10 -10 -9 -8 ------------ Run | Yrd Mat Min Mat Mat Used RIF Installer . | . . . . . Robots Hacked . | . . . . . Non-combat . | . . . . . Combat . | . . . . . Robot Hacks Applied . | . . . . . Relay Couplers Released . | . . . . . Fabnet Peak Effective % . | . . . . . Robots Rewired . | . . . . . Allies Hacked . | . . . . . Hacks Repelled . | . . . . . Allies | -11 -10 -10 -9 -8 -------- Run | Yrd Mat Min Mat Mat Total Allies 2 | . . 2 . . Largest Group 2 | . . 2 1 . Highest-Rated Group 43 | . . 43 31 . Highest-Rated Ally 31 | . . 31 31 . Total Orders . | . . . . . Ally Attacks 41 | . . 7 34 . Total Damage 538 | . . 62 476 . Kills 8 | . . 1 7 . Allies Corrupted . | . . . . . Allies Melted . | . . . . . Intel | -11 -10 -10 -9 -8 ------- Run | Yrd Mat Min Mat Mat Robot Analysis Total . | . . . . . Derelict Logs Recovered . | . . . . . Drone Launches . | . . . . . Drone Recoveries . | . . . . . Exploration | -11 -10 -10 -9 -8 ------------- Run | Yrd Mat Min Mat Mat Turns Passed 2808 | 89 221 622 1092 784 Spaces Moved 1641 | 67 144 249 660 521 Core 71 | 9 . . . 62 Treads 1 | . . . 1 . Legs 1569 | 58 144 249 659 459 Wheels . | . . . . . Hover . | . . . . . Flight . | . . . . . Fastest Speed 50 | 50 120 120 120 50 Average Speed 128 | 110 120 148 129 121 Slowest Speed 550 | 120 120 190 260 550 Overloaded Moves . | . . . . . Propulsion Burnouts . | . . . . . Robots Hopped 2 | . . . 2 . Cave-ins Triggered 1 | . . . . 1 Exploration Rate (%) 41 | 4 33 77 59 36 Regions Visited 4 Branch Regions 1 Pre-discovered Areas . | . . . . . Known Exits Taken . | . . . . . Unknown Exits Taken 4 | 1 1 1 1 . Scrap Searched 1 | . . 1 . . Spaces Dug . | . . . . . Terrain Destroyed 106 | . . 17 64 25 Melee . | . . . . . Projectile . | . . . . . AOE 106 | . . 17 64 25 Terrain Rammed . | . . . . . Walls Destroyed . | . . . . . Machines Disabled . | . . . . . Actions | -11 -10 -10 -9 -8 --------- Run | Yrd Mat Min Mat Mat Total 2129 | 79 168 487 778 617 Wait 242 | 1 2 215 3 21 Move 1633 | 66 143 248 655 521 Hop 2 | . . . 2 . Pick Up 33 | 6 3 4 11 9 Fast Attach 33 | 6 3 1 19 4 Attach 24 | . . . 8 16 Detach 2 | . . . 2 . Swap 12 | . 1 3 7 1 Drop 22 | . 3 6 6 7 Fire 122 | . 13 10 65 34 Melee . | . . . . . Ram 4 | . . . . 4 Kick . | . . . . . Crush . | . . . . . Escape Stasis . | . . . . . Rewire . | . . . . . Trap . | . . . . . Miscellaneous . | . . . . . Route ------- -11/Scrapyard -10/Materials (discovered 2 exits: *Mat / *Min) -10/Mines -9/Materials -8/Materials (discovered 2 exits: [*Fac x2]) History --------- Turn | Location | Event 10 | -11/Scrapyard | Discovered new exit (range 15) 90 | -11/Scrapyard | Entered Materials 216 | -10/Materials | Discovered new exit (range 16) 230 | -10/Materials | Discovered new exit (range 16) 311 | -10/Materials | Entered Mines 325 | -10/Mines | Build established: Mutant 676 | -10/Mines | Met a Derelict shopkeep closing up shop 761 | -10/Mines | Found a damaged Exp. Sensor Array with a note attached 766 | -10/Mines | Found Prototype Device 927 | -10/Mines | Discovered new exit (range 6) 933 | -10/Mines | Entered Materials 933 | -9/Materials | Accompanied by 1 ally 933 | -9/Materials | Evolved 2 slots: Propulsion x2 938 | -9/Materials | Led the pair of lost Derelicts to an unsafe place 1972 | -9/Materials | Discovered new exit (range 10) 2025 | -9/Materials | Entered another Materials area 2025 | -8/Materials | Evolved 2 slots: Utility x2 2026 | -8/Materials | Identified Exp. Sensor Array 2596 | -8/Materials | Discovered new exit (range 5) 2668 | -8/Materials | Crushed by falling debris 2669 | -8/Materials | Core integrity fell below 50% 2707 | -8/Materials | Core integrity fell below 20% 2731 | -8/Materials | Lost 19 parts (3p3n4u9w) 2809 | -8/Materials | Discovered new exit (range 15) 2809 | -8/Materials | Destroyed by G-47 Trooper with Particle Gun Last Messages --------------- K-01 Serf cleans the Material Compactor. Triggered Proton Bomb Trap. A bubble of electromagnetic force engulfs the area. Proton Bomb Trap short circuited. K-01 Serf destroyed. Door malfunctions. A bubble of electromagnetic force engulfs the area. Acquired 11 matter. O-16 Technician: "IFF HANDSHAKE FAILED. SECURING TERMINAL." O-16 Technician uses terminal to summon reinforcements. ALERT: Hostiles spotted, dispatching reinforcements to Terminal M009. O-16 Technician locks terminal. Aluminum Leg destroyed. Lgt. Deuterium Engine destroyed. EXIT=FOUND Map ----- +----------------------------------------------------+ | ???????????????????????????????????????# #?????? | | ???????????????????????????????????????# #?????? | | ??????????????????????????????????????## ##????? | | ??????????????????????????????????????# #????# | | ??????????????????????????????????????# #???# | | ??????????????????????????????????????# #???# | | ??????????????????????????????????????# #???#" | | ??????????????????????????????????????# ????#" | | ?????????????????????????????????????### ######" | | ?????????????????????????????????????# # | | ??????????????????????????# ???????# # | | ??????????????????????????# ???????# # | | ??????????????????????????# #??????# ####! / | | ??????????????????????????# #??????# #??# = # | | ??????????????????????????# #??????# #??# # | | ??????????????????????????# #??????# #??# ^## | | ??????????????????????????# #??????# #??# | | ??????????????????????????# #??????# #??# | | ??????????????????????????# #??????# #??# | | ??????????????????????????# #??????# #??#### | | ??????????????????????????+ #??????# #?????# | | ??????????????????????????# #??????# #?????# | | ??????????????????????????# ######## #?????# | | ???????????? ##############g g #?????# | | ?????????? g #?????# | | ??????????< a @ gg #?????# | | ?????????? ga l ############?????# | | ????????????# #+######t########????????????# | | ????????????#????????????# """ #???????????# | | ?????????????????????????# "T" #???????????# | | ?????????????????????????# #???????????# | | ?????????????????????????# ! #???????????# | | ?????????????????????????# #???????????# | | ?????????????????????????# """ """ #???????????# | | ?????????????????????????# """ """ #???????????### | | ?????????????????????????# """ """ ?????????????? | | ?????????????????????????#########?????????????# | | ???????????????????????????????????????????????#! | | ???????????????????????????????????????????????# | | ???????????????????????????????????????????????# | | ???????????????????????????????????????????????# | | ???????????????????????????????????????????????### | | ?????????????????????????????????????????????????? | | ?????????????????????????????????????????????????? | | ?????????????????????????????????????????????????? | | ?????????????????????????????????????????????????? | | ????????????????????????? # | | ?????????????????????????##########+##### | | ????????????????????????????????# ###### | | ????????????????????????????????# #### #????? | +----------------------------------------------------+ Best States ------------- Heat Dissipation 45 Energy Generation 18 Energy Capacity 275 Matter Stores 300 Matter Capacity 300 Sight Range 16 Robot Scan Range 20 Terrain Scan Density 10 Armor Coverage 225 Evasion (%) 55 Targeting Accuracy 5 Recoil Reduction 1 Particle Charging 15 Item Schematics ----------------- None Robot Schematics ------------------ None Fabricated ------------ Nothing Alien Tech Used ----------------- None Achievements -------------- None Challenges ------------ None Game ------ Seed FluxPhysicsProtomatter Manual? 0 Play Time 00:37:07 Cumulative 27.5 hours Start 2024.10.07 @ 12:09:20 End 2024.10.07 @ 12:44:15 Sessions 1 Manual Loads 0 Difficulty Rogue Special Mode None Game No. 45 Rogue 45 Adventurer 0 Explorer 0 Win Type - Total 0 Types 0/0/0/0/0/0/0/0/0 Lore% 9 Gallery% 31 Achievement% 23 Wizard Run 0 Options --------- Layout 1 ASCII 0 Keyboard 0 Movement Numpad Keybinds 0 Fullscreen 1 Font 24/Smallcaps Map View 50x35 Zoom Use 0% Tactical HUD 0 Map Filters NONE Filters NONE Steam 1 RUN: 1b29bfca-6d3d-4fd6-b582-5e410ecfc57f